fUSD/lending_fUSD_20260128
["ID","MTS","AMOUNT","RATE_DAILY","PERIOD"]
[403893558,1769638253474,-151.0,0.000429,120]
[403893559,1769638253483,-151.0,0.000429,120]
[403893560,1769638253493,-152.731602,0.000429,120]
[403893561,1769638253503,-151.0,0.000429,120]
[403893562,1769638253512,-214.296415,0.000429,120]
[403893563,1769638253521,-151.0,0.000429,120]
[403893564,1769638253530,-214.296415,0.000429,120]
[403893565,1769638253540,-151.0,0.000429,120]
[403893566,1769638253549,-214.296415,0.000429,120]
[403893567,1769638253558,-214.296415,0.000429,120]
[403893568,1769638253567,-151.0,0.000429,120]
[403893569,1769638253576,-151.0,0.000429,120]
[403893570,1769638253585,-153.614459,0.000429,120]
[403893571,1769638253595,-176.599682,0.000429,120]
[403893572,1769638253604,-156.938867,0.000429,120]
[403893573,1769638253613,-151.0,0.000429,120]
[403893574,1769638253623,-151.0,0.000429,120]
[403893575,1769638253632,-151.0,0.000429,120]
[403893576,1769638253641,-151.0,0.000429,120]
[403893577,1769638253652,-151.0,0.000429,120]
[403893578,1769638253662,-151.0,0.000429,120]
[403893579,1769638253671,-151.0,0.000429,120]
[403893580,1769638253680,-151.0,0.000429,120]
[403893581,1769638253690,-151.0,0.000429,7]
[403893582,1769638253699,-151.0,0.000429,7]
[403893583,1769638253709,-151.0,0.000429,120]
[403893584,1769638253718,-151.0,0.000429,120]
[403893585,1769638253727,-151.0,0.000429,120]
[403893586,1769638253737,-171.412344,0.000429,120]
[403893587,1769638253746,-151.0,0.000429,120]
[403893588,1769638253756,-151.0,0.000429,120]
[403893589,1769638253766,-151.0,0.000429,60]
[403893590,1769638253775,-176.038222,0.000429,120]
[403893591,1769638253784,-151.0,0.000429,120]
[403893592,1769638253794,-151.0,0.000429,120]
[403893593,1769638253803,-325.123732,0.000429,120]
[403893594,1769638253812,-325.123732,0.000429,120]
[403893595,1769638253822,-325.123732,0.000429,120]
[403893596,1769638253832,-325.123732,0.000429,120]
[403893597,1769638253841,-151.0,0.000429,120]
[403893598,1769638253851,-864.541818,0.000429,28]
[403893599,1769638253860,-864.541818,0.000429,28]
[403893600,1769638253870,-864.541818,0.000429,28]
[403893601,1769638253879,-150.0,0.000429,14]
[403893602,1769638253889,-864.541818,0.000429,28]
[403893603,1769638253898,-287.434662,0.000429,120]
[403893604,1769638253908,-151.0,0.000429,120]
[403893605,1769638253917,-151.0,0.000429,120]
[403893606,1769638253926,-151.0,0.000429,120]
[403893607,1769638253936,-151.0,0.000429,120]
[403893608,1769638253945,-184.982973,0.000429,120]
[403893609,1769638253956,-184.982973,0.000429,120]
[403893610,1769638253968,-184.982973,0.000429,120]
[403893611,1769638253977,-151.0,0.000429,120]
[403893612,1769638253987,-184.982973,0.000429,120]
[403893613,1769638253996,-151.0,0.000429,120]
[403893614,1769638254007,-151.0,0.000429,120]
[403893615,1769638254016,-151.0,0.000429,120]
[403893616,1769638254025,-151.0,0.000429,120]
[403893617,1769638254036,-151.0,0.000429,120]
[403893618,1769638254046,-151.0,0.000429,120]
[403893619,1769638254055,-151.0,0.000429,120]
[403893620,1769638254065,-151.0,0.000429,120]
[403893621,1769638254074,-468.06,0.000429,14]
[403893622,1769638254084,-153.869016,0.000429,120]
[403893623,1769638254094,-153.869016,0.000429,120]
[403893624,1769638254103,-151.0,0.000429,120]
[403893625,1769638254113,-153.869016,0.000429,120]
[403893626,1769638254123,-153.869016,0.000429,120]
[403893627,1769638254133,-216.414734,0.000429,120]
[403893628,1769638254143,-153.532318,0.000429,120]
[403893629,1769638254153,-151.0,0.000429,120]
[403893630,1769638254162,-151.0,0.000429,120]
[403893631,1769638254171,-151.0,0.000429,30]
[403893632,1769638254180,-151.0,0.000429,120]
[403893633,1769638254190,-151.0,0.000429,120]
[403893634,1769638254199,-151.0,0.000429,120]
[403893635,1769638254209,-152.48,0.00042905,120]
[403893636,1769638254218,-150.0,0.00042909,14]
[403893637,1769638254227,-1000.0,0.00042926,14]
[403893638,1769638254236,-300.0,0.00042959,90]
[403893639,1769638254245,-300.0,0.00042959,90]
[403893640,1769638254255,-1246.60605436,0.00042984,28]
[403893641,1769638254264,-869.27,0.00042986,120]
[403893642,1769638254274,-500.0,0.00042986,120]
[403893643,1769638254283,-202.66659968,0.00042994,120]
[403893644,1769638254292,-300.290316,0.00043,114]
[403893645,1769638254302,-367.37,0.00043,30]
[403893646,1769638254311,-200.0,0.00043,120]
[403893647,1769638254320,-500.0,0.00043001,60]
[403893648,1769638254329,-152.48,0.00043005,120]
[403893649,1769638254339,-300.0,0.00043014,120]
[403893650,1769638254348,-363.0,0.00043014,120]
[403893651,1769638254357,-151.85735143,0.00043022,14]
[403893652,1769638254367,-200.0,0.00043044,120]
[403893653,1769638254376,-300.0,0.00043068,120]
[403893654,1769638254731,-1246.60605436,0.00043076,28]
[403893655,1769638254746,-1767.0,0.00043094,30]
[403893656,1769638254755,-169.45817962,0.000431,120]
[403893657,1769638254764,-150.0,0.00043103,14]
[403893658,1769638254774,-152.48,0.00043105,120]
[403893659,1769638254782,-869.27,0.00043123,120]
[403893660,1769638254791,-500.0,0.00043123,120]
[403893661,1769638254801,-150.0,0.0004315,14]
[403893662,1769638254810,-717.69,0.00043151,120]
[403893663,1769638254819,-1246.60605436,0.00043167,28]
[403893664,1769638254828,-2472.07106167,0.00043187,15]
[403893665,1769638254838,-202.66659968,0.00043187,120]
[403893666,1769638254848,-159.71168433,0.00043187,120]
[403893667,1769638254857,-978.88922576,0.00043187,2]
[403893668,1769638254866,-693.3011416,0.00043187,2]
[403893669,1769638254875,-556.43261281,0.00043187,15]
[403893670,1769638254884,-2172.43088447,0.00043187,120]
[403893671,1769638254893,-2172.43088447,0.00043187,120]
[403893672,1769638254903,-2172.43088447,0.00043187,120]
[403893673,1769638254912,-2172.43088447,0.00043187,120]
[403893674,1769638254921,-2172.43088447,0.00043187,120]
[403893675,1769638254930,-2172.43088447,0.00043187,120]
[403893676,1769638254939,-2172.43088447,0.00043187,120]
[403893677,1769638254949,-2172.43088447,0.00043187,120]
[403893678,1769638254964,-2172.43088447,0.00043187,120]
[403893679,1769638254980,-2172.43088447,0.00043187,120]
[403893680,1769638254990,-2172.43088447,0.00043187,120]
[403893681,1769638254999,-2172.43088447,0.00043187,120]
[403893682,1769638255009,-2172.43088447,0.00043187,120]
[403893683,1769638255019,-2172.43088447,0.00043187,120]
[403893684,1769638255027,-2172.43088447,0.00043187,120]
[403893685,1769638255037,-2172.43088447,0.00043187,120]
[403893686,1769638255047,-2172.43088447,0.00043187,120]
[403893687,1769638255056,-2172.43088447,0.00043187,120]
[403893688,1769638255066,-2172.43088447,0.00043187,120]
[403893689,1769638255075,-2172.43,0.00043187,120]
[403893690,1769638255084,-3152.47328897,0.00043187,120]
[403893691,1769638255094,-3152.47328897,0.00043187,120]
[403893692,1769638255103,-3152.47328897,0.00043187,120]
[403893693,1769638255113,-3152.47328897,0.00043187,120]
[403893694,1769638255122,-3152.47328897,0.00043187,120]
[403893695,1769638255131,-3152.47328897,0.00043187,120]
[403893696,1769638255140,-3152.47328897,0.00043187,120]
[403893697,1769638255149,-3152.47328897,0.00043187,120]
[403893698,1769638255158,-3152.47328897,0.00043187,120]
[403893699,1769638255167,-3152.47328897,0.00043187,120]
[403893700,1769638255177,-3152.47328897,0.00043187,120]
[403893701,1769638255186,-3152.47328897,0.00043187,120]
[403893702,1769638255195,-3152.47328897,0.00043187,120]
[403893703,1769638255205,-3152.47328897,0.00043187,120]
[403893704,1769638255214,-3152.47328897,0.00043187,120]
[403893705,1769638255224,-3152.47328897,0.00043187,120]
[403893706,1769638255233,-3152.47328897,0.00043187,120]
[403893707,1769638255243,-3152.47328897,0.00043187,120]
[403893708,1769638255253,-3152.47328897,0.00043187,120]
[403893709,1769638255262,-3152.47,0.00043187,120]
[403893710,1769638255272,-1804.89471049,0.00043187,120]
[403893711,1769638255282,-1804.89471049,0.00043187,120]
[403893712,1769638255291,-1804.89471049,0.00043187,120]
[403893713,1769638255301,-1804.89471049,0.00043187,120]
[403893714,1769638255310,-1804.89471049,0.00043187,120]
[403893715,1769638255319,-1804.89471049,0.00043187,120]
[403893716,1769638255329,-1804.89471049,0.00043187,120]
[403893717,1769638255338,-1804.89471049,0.00043187,120]
[403893718,1769638255347,-1804.89471049,0.00043187,120]
[403893719,1769638255357,-1804.89471049,0.00043187,120]
[403893720,1769638255366,-1804.89471049,0.00043187,120]
[403893721,1769638255376,-1804.89471049,0.00043187,120]
[403893722,1769638255386,-1804.89471049,0.00043187,120]
[403893723,1769638255395,-1804.89471049,0.00043187,120]
[403893724,1769638255404,-1804.89471049,0.00043187,120]
[403893725,1769638255414,-1804.89471049,0.00043187,120]
[403893726,1769638255423,-1804.89471049,0.00043187,120]
[403893727,1769638255432,-1804.89471049,0.00043187,120]
[403893728,1769638255442,-1804.89471049,0.00043187,120]
[403893729,1769638255452,-1804.89,0.00043187,120]
[403893730,1769638255461,-150.0,0.000432,120]
[403893731,1769638255470,-152.48,0.00043205,120]
[403893732,1769638255479,-717.69,0.00043205,120]
[403893733,1769638255488,-150.0,0.00043226,14]
[403893734,1769638255498,-150.0,0.00043239,14]
[403893735,1769638255507,-1000.0,0.00043253,14]
[403893736,1769638255516,-1246.60605436,0.00043259,28]
[403893737,1769638255525,-717.69,0.0004326,120]
[403893738,1769638255535,-869.27,0.0004326,120]
[403893739,1769638255544,-218.25,0.0004326,120]
[403893740,1769638255554,-150.0,0.0004326,30]
[403893741,1769638255563,-150.0,0.0004326,30]
[403893742,1769638255572,-152.41922063,0.0004326,30]
[403893743,1769638255581,-150.0,0.0004326,30]
[403893744,1769638255591,-150.0,0.0004326,30]
[403893745,1769638255600,-361.37453716,0.0004326,30]
[403893746,1769638255609,-150.0,0.0004326,30]
[403893747,1769638255618,-150.0,0.0004326,30]
[403893748,1769638255628,-150.0,0.0004326,30]
[403893749,1769638255637,-150.0,0.0004326,30]
[403893750,1769638255646,-150.0,0.0004326,30]
[403893751,1769638255655,-150.0,0.0004326,30]
[403893752,1769638255666,-150.0,0.0004326,30]
[403893753,1769638255675,-152.41922063,0.00043263,30]
[403893754,1769638255684,-361.37453716,0.00043263,30]
[403893755,1769638255693,-150.0,0.00043263,30]
[403893756,1769638255703,-150.0,0.00043263,30]
[403893757,1769638255711,-150.0,0.00043263,30]
[403893758,1769638255721,-150.0,0.00043266,30]
[403893759,1769638255730,-152.41922063,0.00043266,30]
[403893760,1769638255739,-361.37453716,0.00043266,30]
[403893761,1769638255748,-150.0,0.00043266,30]
[403893762,1769638255757,-150.0,0.00043266,30]
[403893763,1769638255766,-150.0,0.00043267,30]
[403893764,1769638255775,-152.41922063,0.00043269,30]
[403893765,1769638255784,-361.37453716,0.00043269,30]
[403893766,1769638255793,-150.0,0.00043269,30]
[403893767,1769638255802,-150.0,0.00043269,30]
[403893768,1769638255812,-150.0,0.0004327,30]
[403893769,1769638255820,-150.0,0.00043271,30]
[403893770,1769638255830,-150.0,0.00043271,30]
[403893771,1769638255839,-152.41922063,0.00043272,30]
[403893772,1769638255848,-361.37453716,0.00043272,30]
[403893773,1769638255857,-150.0,0.00043272,30]
[403893774,1769638255866,-150.0,0.00043272,30]
[403893775,1769638255875,-150.0,0.00043273,30]
[403893776,1769638255884,-150.0,0.00043273,30]
[403893777,1769638255893,-152.41922063,0.00043275,30]
[403893778,1769638255902,-361.37453716,0.00043275,30]
[403893779,1769638255911,-150.0,0.00043275,30]
[403893780,1769638255920,-150.0,0.00043275,30]
[403893781,1769638255930,-150.0,0.00043276,30]
[403893782,1769638255939,-150.0,0.00043276,30]
[403893783,1769638255949,-150.0,0.00043276,30]
[403893784,1769638255960,-152.41922063,0.00043278,30]
[403893785,1769638255969,-361.37453716,0.00043278,30]
[403893786,1769638255978,-150.0,0.00043278,30]
[403893787,1769638255987,-150.0,0.00043278,30]
[403893788,1769638255996,-150.0,0.00043279,30]
[403893789,1769638256006,-152.41922063,0.00043281,30]
[403893790,1769638256015,-361.37453716,0.00043281,30]
[403893791,1769638256024,-150.0,0.00043281,30]
[403893792,1769638256034,-150.0,0.00043281,30]
[403893793,1769638256043,-150.0,0.00043282,30]
[403893794,1769638256052,-150.0,0.00043282,30]
[403893795,1769638256061,-150.0,0.00043282,30]
[403893796,1769638256070,-150.0,0.00043282,30]
[403893797,1769638256080,-152.41922063,0.00043284,30]
[403893798,1769638256090,-361.37453716,0.00043284,30]
[403893799,1769638256099,-150.0,0.00043284,30]
[403893800,1769638256108,-150.0,0.00043284,30]
[403893801,1769638256117,-151.0,0.00043284,120]
[403893802,1769638256126,-151.0,0.00043284,120]
[403893803,1769638256135,-151.0,0.00043284,120]
[403893804,1769638256144,-150.0,0.00043285,30]
[403893805,1769638256153,-150.0,0.00043285,30]
[403893806,1769638256163,-152.41922063,0.00043287,30]
[403893807,1769638256172,-361.37453716,0.00043287,30]
[403893808,1769638256181,-150.0,0.00043287,30]
[403893809,1769638256190,-834.90292043,0.00043287,120]
[403893810,1769638256199,-884.48245082,0.00043287,60]
[403893811,1769638256208,-884.48245082,0.00043287,60]
[403893812,1769638256218,-884.48245082,0.00043287,60]
[403893813,1769638256227,-884.48245082,0.00043287,60]
[403893814,1769638256237,-884.48245082,0.00043287,60]
[403893815,1769638256246,-884.48245082,0.00043287,60]
[403893816,1769638256255,-664.46992801,0.00043287,60]
[403893817,1769638256265,-664.46992801,0.00043287,60]
[403893818,1769638256274,-1828.14542123,0.00043287,60]
[403893819,1769638256283,-1422.90651952,0.00043287,60]
[403893820,1769638256292,-1422.90651952,0.00043287,60]
[403893821,1769638256301,-1422.90651952,0.00043287,60]
[403893822,1769638256310,-1422.90651952,0.00043287,60]
[403893823,1769638256320,-1422.90651952,0.00043287,60]
[403893824,1769638256329,-1422.90651952,0.00043287,60]
[403893825,1769638256338,-1422.90651952,0.00043287,60]
[403893826,1769638256347,-1422.90651952,0.00043287,60]
[403893827,1769638256356,-1422.90651952,0.00043287,60]
[403893828,1769638256366,-557.43959828,0.00043287,120]
[403893829,1769638256375,-500.0,0.00043287,120]
[403893830,1769638256384,-500.0,0.00043287,120]
[403893831,1769638256393,-573.03909749,0.00043287,120]
[403893832,1769638256403,-500.0,0.00043287,120]
[403893833,1769638256414,-500.0,0.00043287,120]
[403893834,1769638256423,-500.0,0.00043287,120]
[403893835,1769638256432,-500.0,0.00043287,120]
[403893836,1769638256442,-352.68110156,0.00043287,120]
[403893837,1769638256462,-507.01530385,0.00043287,120]
[403893838,1769638256472,-506.16419674,0.00043287,120]
[403893839,1769638256481,-511.31066879,0.00043287,120]
[403893840,1769638256491,-500.0,0.00043287,120]
[403893841,1769638256500,-500.0,0.00043287,120]
[403893842,1769638256509,-209.70289354,0.00043287,120]
[403893843,1769638256519,-441.35824917,0.00043287,120]
[403893844,1769638256528,-500.0,0.00043287,120]
[403893845,1769638256539,-500.0,0.00043287,120]
[403893846,1769638256548,-500.0,0.00043287,120]
[403893847,1769638256558,-519.24292238,0.00043287,120]
[403893848,1769638256568,-500.0,0.00043287,120]
[403893849,1769638256577,-500.0,0.00043287,120]
[403893850,1769638256586,-500.0,0.00043287,120]
[403893851,1769638256595,-400.0,0.00043287,120]
[403893852,1769638256604,-500.0,0.00043287,120]
[403893853,1769638256614,-542.20728725,0.00043287,120]
[403893854,1769638256624,-500.0,0.00043287,120]
[403893855,1769638256633,-500.0,0.00043287,120]
[403893856,1769638256643,-500.0,0.00043287,120]
[403893857,1769638256652,-500.0,0.00043287,120]
[403893858,1769638256662,-500.0,0.00043287,120]
[403893859,1769638256672,-500.0,0.00043287,120]
[403893860,1769638256681,-500.0,0.00043287,120]
[403893861,1769638256691,-500.0,0.00043287,120]
[403893862,1769638256700,-500.0,0.00043287,120]
[403893863,1769638256710,-513.0969253,0.00043287,120]
[403893864,1769638256719,-500.0,0.00043287,120]
[403893865,1769638256729,-500.0,0.00043287,120]
[403893866,1769638256738,-500.0,0.00043287,120]
[403893867,1769638256748,-500.0,0.00043287,120]
[403893868,1769638256758,-498.0500532,0.00043287,120]
[403893869,1769638256767,-500.0,0.00043287,120]
[403893870,1769638256777,-500.0,0.00043287,120]
[403893871,1769638256787,-500.0,0.00043287,120]
[403893872,1769638256796,-500.0,0.00043287,120]
[403893873,1769638256810,-413.84136644,0.00043287,120]
[403893874,1769638256819,-500.0,0.00043287,120]
[403893875,1769638256830,-500.0,0.00043287,120]
[403893876,1769638256839,-500.0,0.00043287,120]
[403893877,1769638256849,-500.0,0.00043287,120]
[403893878,1769638256859,-500.0,0.00043287,120]
[403893879,1769638256869,-500.0,0.00043287,120]
[403893880,1769638256879,-500.0,0.00043287,120]
[403893881,1769638256888,-500.0,0.00043287,120]
[403893882,1769638256898,-202.87475067,0.00043287,120]
[403893883,1769638256907,-500.0,0.00043287,120]
[403893884,1769638256917,-505.96045164,0.00043287,120]
[403893885,1769638256926,-500.0,0.00043287,120]
[403893886,1769638256936,-574.08410489,0.00043287,120]
[403893887,1769638256946,-500.0,0.00043287,120]
[403893888,1769638256956,-500.0,0.00043287,120]
[403893889,1769638256969,-301.77032506,0.00043287,120]
[403893890,1769638256979,-500.0,0.00043287,120]
[403893891,1769638256988,-500.0,0.00043287,120]
[403893892,1769638256999,-500.0,0.00043287,120]
[403893893,1769638257009,-500.0,0.00043287,120]
[403893894,1769638257019,-561.0782182,0.00043287,120]
[403893895,1769638257029,-500.0,0.00043287,120]
[403893896,1769638257039,-194.76784901,0.00043287,120]
[403893897,1769638257049,-500.0,0.00043287,120]
[403893898,1769638257253,-500.0,0.00043287,120]
[403893899,1769638257262,-500.0,0.00043287,120]
[403893900,1769638257272,-500.0,0.00043287,120]
[403893901,1769638257281,-500.0,0.00043287,120]
[403893902,1769638257290,-535.8902595,0.00043287,120]
[403893903,1769638257300,-516.55865311,0.00043287,120]
[403893904,1769638257309,-500.0,0.00043287,120]
[403893905,1769638257318,-500.0,0.00043287,120]
[403893906,1769638257327,-582.55596695,0.00043287,120]
[403893907,1769638257336,-500.0,0.00043287,120]
[403893908,1769638257345,-500.0,0.00043287,120]
[403893909,1769638257354,-516.12932037,0.00043287,120]
[403893910,1769638257363,-500.0,0.00043287,120]
[403893911,1769638257373,-556.1371965,0.00043287,120]
[403893912,1769638257382,-500.0,0.00043287,120]
[403893913,1769638257391,-500.0,0.00043287,120]
[403893914,1769638257400,-542.19232211,0.00043287,120]
[403893915,1769638257409,-523.27486622,0.00043287,120]
[403893916,1769638257418,-500.0,0.00043287,120]
[403893917,1769638257427,-500.0,0.00043287,120]
[403893918,1769638257436,-500.0,0.00043287,120]
[403893919,1769638257446,-500.0,0.00043287,120]
[403893920,1769638257455,-500.0,0.00043287,120]
[403893921,1769638257464,-500.0,0.00043287,120]
[403893922,1769638257474,-500.0,0.00043287,120]
[403893923,1769638257487,-500.0,0.00043287,120]
[403893924,1769638257497,-529.60101,0.00043287,120]
[403893925,1769638257506,-526.99402255,0.00043287,120]
[403893926,1769638257515,-500.0,0.00043287,120]
[403893927,1769638257524,-500.0,0.00043287,120]
[403893928,1769638257533,-500.0,0.00043287,120]
[403893929,1769638257543,-500.0,0.00043287,120]
[403893930,1769638257552,-473.42197739,0.00043287,120]
[403893931,1769638257561,-500.0,0.00043287,120]
[403893932,1769638257571,-221.6319393,0.00043287,120]
[403893933,1769638257580,-423.36207367,0.00043287,120]
[403893934,1769638257589,-500.0,0.00043287,120]
[403893935,1769638257598,-513.76195309,0.00043287,120]
[403893936,1769638257607,-154.013724,0.00043287,120]
[403893937,1769638257616,-154.013724,0.00043287,120]
[403893938,1769638257625,-154.013724,0.00043287,120]
[403893939,1769638257634,-154.013724,0.00043287,120]
[403893940,1769638257643,-154.013724,0.00043287,120]
[403893941,1769638257652,-154.013724,0.00043287,120]
[403893942,1769638257661,-154.013724,0.00043287,120]
[403893943,1769638257670,-154.013724,0.00043287,120]
[403893944,1769638257679,-154.013724,0.00043287,120]
[403893945,1769638257688,-520.87046347,0.00043287,120]
[403893946,1769638257696,-154.013724,0.00043287,120]
[403893947,1769638257706,-500.0,0.00043287,120]
[403893948,1769638257715,-500.0,0.00043287,120]
[403893949,1769638257724,-500.0,0.00043287,120]
[403893950,1769638257733,-500.0,0.00043287,120]
[403893951,1769638257742,-500.0,0.00043287,120]
[403893952,1769638257751,-500.0,0.00043287,120]
[403893953,1769638257760,-500.0,0.00043287,120]
[403893954,1769638257769,-500.0,0.00043287,120]
[403893955,1769638257778,-500.0,0.00043287,120]
[403893956,1769638257788,-233.44798845,0.00043287,120]
[403893957,1769638257796,-500.0,0.00043287,120]
[403893958,1769638257806,-500.0,0.00043287,120]
[403893959,1769638257815,-500.0,0.00043287,120]
[403893960,1769638257824,-539.15546184,0.00043287,120]
[403893961,1769638257833,-500.0,0.00043287,120]
[403893962,1769638257846,-500.0,0.00043287,120]
[403893963,1769638257855,-500.0,0.00043287,120]
[403893964,1769638257864,-500.0,0.00043287,120]
[403893965,1769638257873,-500.0,0.00043287,120]
[403893966,1769638257882,-500.0,0.00043287,120]
[403893967,1769638257891,-504.76828863,0.00043287,120]
[403893968,1769638257900,-489.64749692,0.00043287,120]
[403893969,1769638257909,-335.71763993,0.00043287,120]
[403893970,1769638257918,-500.0,0.00043287,120]
[403893971,1769638257927,-500.0,0.00043287,120]
[403893972,1769638257936,-509.78826018,0.00043287,120]
[403893973,1769638257945,-500.0,0.00043287,120]
[403893974,1769638257954,-448.3658297,0.00043287,120]
[403893975,1769638257966,-572.06723309,0.00043287,120]
[403893976,1769638257975,-500.0,0.00043287,120]
[403893977,1769638257984,-500.0,0.00043287,120]
[403893978,1769638257993,-500.0,0.00043287,120]
[403893979,1769638258003,-362.44249151,0.00043287,120]
[403893980,1769638258012,-500.0,0.00043287,120]
[403893981,1769638258021,-500.0,0.00043287,120]
[403893982,1769638258035,-500.0,0.00043287,120]
[403893983,1769638258044,-500.0,0.00043287,120]
[403893984,1769638258054,-500.0,0.00043287,120]
[403893985,1769638258063,-500.0,0.00043287,120]
[403893986,1769638258072,-500.0,0.00043287,120]
[403893987,1769638258081,-521.52672135,0.00043287,120]
[403893988,1769638258091,-500.0,0.00043287,120]
[403893989,1769638258100,-516.29860768,0.00043287,120]
[403893990,1769638258109,-500.0,0.00043287,120]
[403893991,1769638258119,-500.0,0.00043287,120]
[403893992,1769638258128,-500.0,0.00043287,120]
[403893993,1769638258138,-500.0,0.00043287,120]
[403893994,1769638258147,-500.0,0.00043287,120]
[403893995,1769638258156,-500.0,0.00043287,120]
[403893996,1769638258166,-637.27651464,0.00043287,120]
[403893997,1769638258175,-500.0,0.00043287,120]
[403893998,1769638258184,-558.69961736,0.00043287,120]
[403893999,1769638258194,-589.53311049,0.00043287,120]
[403894000,1769638258203,-558.64126991,0.00043287,120]
[403894001,1769638258212,-500.0,0.00043287,120]
[403894002,1769638258221,-500.0,0.00043287,120]
[403894003,1769638258230,-500.0,0.00043287,120]
[403894004,1769638258242,-340.0,0.00043287,120]
[403894005,1769638258251,-500.0,0.00043287,120]
[403894006,1769638258260,-242.25414279,0.00043287,120]
[403894007,1769638258269,-500.0,0.00043287,120]
[403894008,1769638258279,-500.0,0.00043287,120]
[403894009,1769638258288,-500.0,0.00043287,120]
[403894010,1769638258297,-500.0,0.00043287,120]
[403894011,1769638258307,-500.0,0.00043287,120]
[403894012,1769638258317,-500.0,0.00043287,120]
[403894013,1769638258326,-500.0,0.00043287,120]
[403894014,1769638258336,-500.0,0.00043287,120]
[403894015,1769638258346,-500.0,0.00043287,120]
[403894016,1769638258355,-500.0,0.00043287,120]
[403894017,1769638258364,-500.0,0.00043287,120]
[403894018,1769638258374,-500.0,0.00043287,120]
[403894019,1769638258384,-441.02584618,0.00043287,120]
[403894020,1769638258393,-500.0,0.00043287,120]
[403894021,1769638258403,-500.0,0.00043287,120]
[403894022,1769638258412,-500.0,0.00043287,120]
[403894023,1769638258421,-500.0,0.00043287,120]
[403894024,1769638258431,-500.0,0.00043287,120]
[403894025,1769638258440,-500.0,0.00043287,120]
[403894026,1769638258450,-517.37866075,0.00043287,120]
[403894027,1769638258462,-500.0,0.00043287,120]
[403894028,1769638258471,-500.0,0.00043287,120]
[403894029,1769638258480,-500.0,0.00043287,120]
[403894030,1769638258489,-500.0,0.00043287,120]
[403894031,1769638258499,-500.0,0.00043287,120]
[403894032,1769638258508,-500.0,0.00043287,120]
[403894033,1769638258517,-500.0,0.00043287,120]
[403894034,1769638258530,-528.18549389,0.00043287,120]
[403894035,1769638258539,-500.0,0.00043287,120]
[403894036,1769638258548,-500.0,0.00043287,120]
[403894037,1769638258557,-500.0,0.00043287,120]
[403894038,1769638258566,-500.0,0.00043287,120]
[403894039,1769638258576,-500.0,0.00043287,120]
[403894040,1769638258586,-500.0,0.00043287,120]
[403894041,1769638258595,-500.0,0.00043287,120]
[403894042,1769638258604,-500.0,0.00043287,120]
[403894043,1769638258613,-500.0,0.00043287,120]
[403894044,1769638258622,-500.0,0.00043287,120]
[403894045,1769638258642,-500.0,0.00043287,120]
[403894046,1769638258651,-500.0,0.00043287,120]
[403894047,1769638258660,-500.0,0.00043287,120]
[403894048,1769638258670,-500.0,0.00043287,120]
[403894049,1769638258679,-521.84277907,0.00043287,120]
[403894050,1769638258688,-416.32774106,0.00043287,120]
[403894051,1769638258697,-500.0,0.00043287,60]
[403894052,1769638258706,-500.0,0.00043287,60]
[403894053,1769638258715,-500.0,0.00043287,60]
[403894054,1769638258725,-500.0,0.00043287,60]
[403894055,1769638258734,-500.0,0.00043287,60]
[403894056,1769638258743,-420.58939523,0.00043287,60]
[403894057,1769638258753,-500.0,0.00043287,120]